fUST/lending_fUST_20240709
["ID","MTS","AMOUNT","RATE_DAILY","PERIOD"]
[331575293,1720531839857,-500.0,0.00027397,2]
[331575294,1720531839867,-500.0,0.00027397,2]
[331575295,1720531839877,-500.0,0.00027397,2]
[331575296,1720531839886,-500.0,0.00027397,2]
[331575297,1720531839897,-500.0,0.00027397,2]
[331575298,1720531839907,-500.0,0.00027397,2]
[331575299,1720531839917,-500.0,0.00027397,2]
[331575300,1720531839928,-500.0,0.00027397,2]
[331575301,1720531839939,-500.0,0.00027397,2]
[331575302,1720531839949,-367.1002876,0.00027397,2]
[331575303,1720531839959,-500.0,0.00027397,2]
[331575304,1720531839970,-500.0,0.00027397,2]
[331575305,1720531839980,-500.0,0.00027397,2]
[331575306,1720531839990,-500.0,0.00027397,2]
[331575307,1720531840000,-550.0,0.00027831,2]
[331575308,1720531840010,-172.42394717,0.00028,30]
[331575309,1720531840020,-200.70554428,0.00028,2]
[331575310,1720531840030,-650.0,0.00028379,2]
[331575311,1720531840043,-2841.35834032,0.000289,2]
[331575312,1720531840053,-750.0,0.00028927,2]
[331575313,1720531840064,-1000.0,0.00029,29]
[331575314,1720531840076,-3000.0,0.000291,2]
[331575315,1720531840086,-3000.000001,0.0002911,2]
[331575316,1720531840095,-850.0,0.00029475,2]
[331575317,1720531840105,-3828.25605744,0.00029839,2]
[331575318,1720531840117,-11039.06819247,0.00029879,2]
[331575319,1720531840128,-170.45207762,0.0003,4]
[331575320,1720531840138,-304.22675637,0.0003,30]
[331575321,1720531840148,-220.0,0.0003,2]
[331575322,1720531840158,-950.0,0.00030022,2]
[331575323,1720531840168,-162.723651,0.00030308,2]
[331575324,1720531840178,-1050.0,0.0003057,2]
[331575325,1720531840188,-168.068764,0.00030753,2]
[331575326,1720531840199,-873.03561247,0.00031118,2]
[331575327,1720531840210,-1000.0,0.00032,32]
[331575328,1720531840220,-220.0,0.00033,2]
[331575329,1720531840230,-220.0,0.00033,2]
[331575330,1720531840241,-537.697249,0.00033295,2]
[331575331,1720531840251,-29640.12912396,0.00033333,2]
[331575332,1720531840261,-150.0,0.0003374,2]
[331575333,1720531840272,-3828.25605744,0.000344,2]
[331575334,1720531840282,-6981.98564229,0.00034467,4]
[331575335,1720531840292,-6134.24034193,0.000345,30]
[331575336,1720531840303,-6091.10164734,0.00034562,2]
[331575337,1720531840312,-2198.03163825,0.00034899,4]
[331575338,1720531840324,-2867.51698464,0.00034999,4]
[331575339,1720531840334,-201.46559218,0.00035,120]
[331575340,1720531840344,-1000.0,0.00035,35]
[331575341,1720531840354,-192.802,0.00035108,30]
[331575342,1720531840365,-1431.78470865,0.00035292,2]
[331575343,1720531840375,-2368.16,0.00035616,3]
[331575344,1720531840385,-141.00415602,0.00035616,3]
[331575345,1720531840400,-1503.55584398,0.00035616,3]
[331575346,1720531840411,-2444.31,0.00035616,3]
[331575347,1720531840420,-2036.93,0.00035616,3]
[331575348,1720531840430,-153.0,0.00035856,2]
[331575349,1720531840440,-151.0,0.00035995,2]
[331575350,1720531840450,-151.0,0.00035995,2]
[331575351,1720531840459,-1662.41784921,0.00035999,4]
[331575352,1720531840470,-1662.41784921,0.00035999,4]
[331575353,1720531840480,-1485.56177192,0.00035999,4]
[331575354,1720531840490,-220.0,0.00036,2]
[331575355,1720531840500,-220.0,0.00036,2]
[331575356,1720531840510,-1557.51416039,0.00036351,4]
[331575357,1720531840520,-1274.94810996,0.00036732,4]
[331575358,1720531840530,-243.43650151,0.00037,4]
[331575359,1720531840540,-1092.51200049,0.00037259,21]
[331575360,1720531840550,-1689.28232067,0.00037259,4]
[331575362,1720531840559,-208.81360879,0.00037357,4]
[331575363,1720531840570,-153.0,0.0003736,2]
[331575364,1720531840580,-153.0,0.0003736,2]
[331575365,1720531840591,-153.0,0.0003736,2]
[331575366,1720531840601,-153.0,0.0003736,2]
[331575367,1720531840611,-153.0,0.0003736,2]
[331575369,1720531840621,-153.0,0.0003736,2]
[331575371,1720531840631,-153.20766236,0.0003755,2]
[331575373,1720531840640,-153.0,0.00037797,2]
[331575376,1720531840700,-153.0,0.00037797,2]
[331575377,1720531840717,-153.0,0.00037797,2]
[331575378,1720531840727,-153.0,0.00037797,2]
[331575379,1720531840737,-153.0,0.00037797,2]
[331575380,1720531840747,-153.0,0.00037797,2]
[331575381,1720531840757,-306.0,0.00037797,2]
[331575382,1720531840767,-153.0,0.00037797,2]
[331575383,1720531840777,-151.0,0.00037807,7]
[331575384,1720531840787,-970.944185,0.00037807,7]
[331575385,1720531840797,-970.944185,0.00037807,7]
[331575386,1720531840807,-153.0,0.0003789,2]
[331575387,1720531840818,-153.0,0.0003789,2]
[331575388,1720531840827,-643.5565645,0.00037899,4]
[331575389,1720531840836,-615.86355941,0.00037899,4]
[331575390,1720531840846,-177.55467794,0.00037999,4]
[331575391,1720531840855,-804.85981729,0.00037999,4]
[331575392,1720531840864,-201.46559218,0.00038,120]
[331575393,1720531840874,-1000.0,0.00038,38]
[331575394,1720531840885,-50000.0,0.0003802,3]
[331575395,1720531840896,-151.0,0.0003802,7]
[331575396,1720531840906,-290.926158,0.0003802,7]
[331575397,1720531840915,-398.269942,0.00038061,2]
[331575398,1720531840925,-153.0,0.00038182,2]
[331575399,1720531840934,-153.0,0.00038182,2]
[331575400,1720531840944,-153.0,0.00038182,2]
[331575401,1720531840954,-153.0,0.00038182,2]
[331575402,1720531840965,-153.0,0.00038182,2]
[331575403,1720531840975,-153.0,0.00038182,2]
[331575404,1720531840984,-153.0,0.00038182,2]
[331575405,1720531840994,-153.0,0.00038182,2]
[331575406,1720531841004,-153.0,0.00038182,2]
[331575407,1720531841014,-153.0,0.00038182,2]
[331575408,1720531841024,-153.0,0.00038208,2]
[331575409,1720531841038,-153.0,0.00038208,2]
[331575410,1720531841047,-153.0,0.00038208,2]
[331575411,1720531841056,-153.0,0.00038208,2]
[331575412,1720531841066,-435.4329661,0.00038212,2]
[331575413,1720531841077,-554.63473576,0.00038264,4]
[331575414,1720531841087,-500.0,0.00038356,30]
[331575415,1720531841096,-500.0,0.00038356,14]
[331575416,1720531841107,-500.0,0.00038356,14]
[331575417,1720531841117,-500.0,0.00038356,14]
[331575418,1720531841127,-500.0,0.00038356,14]
[331575419,1720531841137,-572.27,0.00038356,14]
[331575420,1720531841146,-500.0,0.00038356,14]
[331575421,1720531841156,-500.0,0.00038356,14]
[331575422,1720531841165,-500.0,0.00038356,14]
[331575423,1720531841178,-541.56,0.00038356,14]
[331575424,1720531841197,-593.04,0.00038356,14]
[331575425,1720531841213,-500.0,0.00038356,14]
[331575426,1720531841229,-500.0,0.00038356,14]
[331575427,1720531841246,-1099.89,0.00038356,14]
[331575428,1720531841264,-807.2,0.00038356,14]
[331575429,1720531841282,-500.0,0.00038356,14]
[331575430,1720531841296,-500.0,0.00038356,14]
[331575431,1720531841312,-500.0,0.00038356,14]
[331575432,1720531841328,-500.0,0.00038356,14]
[331575433,1720531841341,-500.0,0.00038356,14]
[331575434,1720531841355,-514.02965251,0.00038356,14]
[331575435,1720531841370,-520.84,0.00038356,14]
[331575436,1720531841386,-500.0,0.00038356,14]
[331575437,1720531841403,-6013.32,0.00038356,14]
[331575438,1720531841418,-500.0,0.00038356,14]
[331575439,1720531841429,-451.94088507,0.00038356,14]
[331575440,1720531841444,-500.0,0.00038356,14]
[331575441,1720531841460,-818.3,0.00038356,14]
[331575442,1720531841473,-529.36421729,0.00038356,14]
[331575443,1720531841488,-500.0,0.00038356,14]
[331575444,1720531841500,-500.0,0.00038356,2]
[331575445,1720531841512,-508.50283514,0.00038356,14]
[331575446,1720531841526,-500.0,0.00038356,14]
[331575447,1720531841539,-511.3184689,0.00038356,14]
[331575448,1720531841552,-500.0,0.00038356,14]
[331575449,1720531841564,-513.42181909,0.00038356,14]
[331575450,1720531841578,-500.0,0.00038356,14]
[331575451,1720531841590,-513.14683272,0.00038356,14]
[331575452,1720531841603,-548.5836062,0.00038356,14]
[331575453,1720531841616,-832.29,0.00038356,14]
[331575454,1720531841629,-531.50100612,0.00038356,14]
[331575455,1720531841642,-500.0,0.00038356,14]
[331575456,1720531841656,-562.37,0.00038356,14]
[331575457,1720531841670,-500.0,0.00038356,14]
[331575458,1720531841684,-500.0,0.00038356,14]
[331575459,1720531841698,-500.0,0.00038356,14]
[331575460,1720531841712,-810.44,0.00038356,14]
[331575461,1720531841725,-500.0,0.00038356,14]
[331575462,1720531841738,-500.0,0.00038356,14]
[331575463,1720531841751,-503.33363504,0.00038356,14]
[331575464,1720531841765,-496.85576725,0.00038356,14]
[331575465,1720531841774,-500.0,0.00038356,14]
[331575466,1720531841784,-500.0,0.00038356,14]
[331575467,1720531841793,-500.0,0.00038356,14]
[331575468,1720531841802,-509.87141559,0.00038356,14]
[331575469,1720531841811,-500.0,0.00038356,14]
[331575470,1720531841918,-500.0,0.00038356,14]
[331575471,1720531841928,-500.0,0.00038356,14]
[331575472,1720531841937,-500.0,0.00038356,14]
[331575473,1720531841946,-500.0,0.00038356,14]
[331575474,1720531841959,-500.0,0.00038356,14]
[331575475,1720531841969,-500.0,0.00038356,14]
[331575476,1720531841979,-601.65816034,0.00038356,14]
[331575477,1720531841988,-500.0,0.00038356,14]
[331575478,1720531841997,-500.0,0.00038356,14]
[331575479,1720531842007,-500.0,0.00038356,14]
[331575480,1720531842016,-2040.66,0.00038356,14]
[331575481,1720531842025,-500.0,0.00038356,14]
[331575482,1720531842039,-500.0,0.00038356,14]
[331575483,1720531842048,-500.0,0.00038356,14]
[331575484,1720531842058,-500.0,0.00038356,14]
[331575485,1720531842069,-500.0,0.00038356,14]
[331575486,1720531842080,-500.0,0.00038356,10]
[331575487,1720531842094,-500.0,0.00038356,14]
[331575488,1720531842103,-500.0,0.00038356,14]
[331575489,1720531842113,-1736.19,0.00038356,14]
[331575490,1720531842122,-511.35483874,0.00038356,14]
[331575491,1720531842131,-846.62,0.00038356,14]
[331575492,1720531842140,-172.5417969,0.00038356,14]
[331575493,1720531842149,-500.0,0.00038356,14]
[331575494,1720531842159,-500.0,0.00038356,14]
[331575495,1720531842168,-3501.6,0.00038356,14]
[331575496,1720531842177,-514.61987913,0.00038356,14]
[331575497,1720531842187,-682.7,0.00038356,14]
[331575498,1720531842196,-500.0,0.00038356,14]
[331575499,1720531842206,-758.88,0.00038356,14]
[331575500,1720531842216,-500.0,0.00038356,14]
[331575501,1720531842225,-570.95,0.00038356,14]
[331575502,1720531842234,-500.0,0.00038356,14]
[331575503,1720531842243,-500.0,0.00038356,14]
[331575504,1720531842252,-500.0,0.00038356,14]
[331575505,1720531842261,-792.62,0.00038356,14]
[331575506,1720531842270,-500.0,0.00038356,14]
[331575507,1720531842278,-500.0,0.00038356,14]
[331575508,1720531842288,-500.0,0.00038356,14]
[331575509,1720531842297,-426.37786324,0.00038356,14]
[331575510,1720531842306,-500.0,0.00038356,14]
[331575511,1720531842315,-500.0,0.00038356,2]
[331575512,1720531842326,-1062.33,0.00038356,14]
[331575513,1720531842335,-792.69,0.00038356,14]
[331575514,1720531842343,-528.95964314,0.00038356,14]
[331575515,1720531842352,-537.93287085,0.00038356,14]
[331575516,1720531842362,-6168.46,0.00038356,7]
[331575517,1720531842370,-500.0,0.00038356,14]
[331575518,1720531842379,-500.0,0.00038356,14]
[331575519,1720531842388,-507.65837536,0.00038356,14]
[331575520,1720531842397,-924.99,0.00038356,14]
[331575521,1720531842406,-505.76708539,0.00038356,14]
[331575522,1720531842415,-500.0,0.00038356,14]
[331575523,1720531842425,-699.3,0.00038356,14]
[331575524,1720531842434,-4649.22,0.00038356,14]
[331575525,1720531842444,-500.0,0.00038356,14]
[331575526,1720531842453,-698.41,0.00038356,14]
[331575527,1720531842462,-595.81,0.00038356,14]
[331575528,1720531842471,-500.0,0.00038356,14]
[331575529,1720531842481,-1114.64,0.00038356,14]
[331575530,1720531842490,-500.0,0.00038356,14]
[331575531,1720531842500,-1195.03,0.00038356,14]
[331575532,1720531842511,-500.0,0.00038356,14]
[331575533,1720531842521,-500.0,0.00038356,14]
[331575534,1720531842533,-589.23,0.00038356,14]
[331575535,1720531842543,-886.16,0.00038356,14]
[331575536,1720531842552,-500.0,0.00038356,14]
[331575537,1720531842561,-500.0,0.00038356,14]
[331575538,1720531842572,-500.0,0.00038356,14]
[331575539,1720531842581,-1646.5,0.00038356,14]
[331575540,1720531842590,-500.0,0.00038356,14]
[331575541,1720531842599,-500.0,0.00038356,14]
[331575542,1720531842608,-151.0,0.00038356,7]
[331575543,1720531842618,-151.0,0.00038356,7]
[331575544,1720531842627,-500.0,0.00038356,14]
[331575545,1720531842636,-500.0,0.00038356,14]
[331575546,1720531842645,-11033.08,0.00038356,14]
[331575547,1720531842656,-151.0,0.00038356,7]
[331575548,1720531842666,-453.55484542,0.00038356,14]
[331575549,1720531842675,-259.66890469,0.00038356,14]
[331575550,1720531842683,-500.0,0.00038356,14]
[331575551,1720531842693,-687.21,0.00038356,14]
[331575552,1720531842703,-151.0,0.00038356,7]
[331575553,1720531842713,-500.0,0.00038356,14]
[331575554,1720531842723,-500.0,0.00038356,2]
[331575555,1720531842731,-963.45,0.00038356,14]
[331575556,1720531842740,-2542.44,0.00038356,14]
[331575557,1720531842749,-151.0,0.00038356,7]
[331575558,1720531842758,-968.47,0.00038356,14]
[331575559,1720531842767,-500.0,0.00038356,14]
[331575560,1720531842776,-500.0,0.00038356,14]
[331575561,1720531842785,-500.0,0.00038356,2]
[331575562,1720531842794,-188.90921403,0.00038356,14]
[331575563,1720531842803,-1416.6,0.00038356,14]
[331575564,1720531842812,-500.0,0.00038356,14]
[331575565,1720531842823,-500.0,0.00038356,14]
[331575566,1720531842832,-5292.21400908,0.00038373,2]
[331575567,1720531842841,-1000.0,0.00038461,2]
[331575568,1720531842854,-1000.0,0.00038465,2]
[331575569,1720531842863,-150.0,0.0003848,2]
[331575570,1720531842872,-500.0,0.00038492,2]
[331575571,1720531842881,-164.16,0.00038492,2]
[331575572,1720531842891,-366.61198732,0.00038545,2]
[331575573,1720531842901,-266425.02052,0.00038545,14]
[331575574,1720531842910,-300.0,0.00038546,2]
[331575575,1720531842919,-150.0,0.0003855,2]
[331575576,1720531842929,-4856.92412245,0.00038578,60]
[331575577,1720531842938,-313.18505705,0.00038586,2]
[331575578,1720531842947,-318.12258394,0.00038589,2]
[331575579,1720531842957,-300.68994512,0.00038596,2]
[331575580,1720531842967,-191.15,0.00038629,2]
[331575581,1720531842976,-457.64739537,0.0003863,30]
[331575582,1720531842985,-500.0,0.0003863,14]
[331575583,1720531842994,-500.0,0.0003863,14]
[331575584,1720531843003,-500.0,0.0003863,14]
[331575585,1720531843014,-500.0,0.0003863,14]
[331575586,1720531843023,-572.27,0.0003863,14]
[331575587,1720531843034,-500.0,0.0003863,14]
[331575588,1720531843048,-324.945381,0.0003863,14]
[331575589,1720531843059,-500.0,0.0003863,14]
[331575590,1720531843070,-541.56,0.0003863,14]
[331575591,1720531843080,-593.04,0.0003863,14]
[331575592,1720531843089,-500.0,0.0003863,14]
[331575593,1720531843101,-500.0,0.0003863,14]
[331575594,1720531843112,-1099.89,0.0003863,14]
[331575595,1720531843121,-807.2,0.0003863,14]
[331575597,1720531843131,-500.0,0.0003863,14]
[331575599,1720531843140,-532.50069231,0.0003863,14]
[331575601,1720531843150,-500.0,0.0003863,14]
[331575602,1720531843159,-500.0,0.0003863,14]
[331575604,1720531843168,-520.84,0.0003863,14]
[331575606,1720531843177,-500.0,0.0003863,14]
[331575608,1720531843187,-6013.32,0.0003863,14]
[331575610,1720531843197,-818.3,0.0003863,14]
[331575611,1720531843207,-500.0,0.0003863,14]
[331575613,1720531843216,-500.0,0.0003863,2]
[331575615,1720531843225,-500.0,0.0003863,14]
[331575617,1720531843235,-832.29,0.0003863,14]
[331575619,1720531843244,-500.0,0.0003863,14]
[331575620,1720531843253,-562.37,0.0003863,14]
[331575621,1720531843262,-500.0,0.0003863,14]
[331575622,1720531843271,-500.0,0.0003863,14]
[331575623,1720531843281,-810.44,0.0003863,14]
[331575624,1720531843290,-500.0,0.0003863,14]
[331575625,1720531843299,-500.0,0.0003863,14]
[331575626,1720531843309,-500.0,0.0003863,14]
[331575628,1720531843319,-500.0,0.0003863,14]
[331575630,1720531843328,-500.0,0.0003863,14]
[331575632,1720531843337,-500.0,0.0003863,14]
[331575634,1720531843346,-500.0,0.0003863,14]
[331575636,1720531843356,-500.0,0.0003863,14]
[331575638,1720531843365,-500.0,0.0003863,14]
[331575640,1720531843374,-500.0,0.0003863,14]
[331575642,1720531843384,-303.84089027,0.0003863,14]
[331575644,1720531843393,-500.0,0.0003863,14]
[331575646,1720531843402,-500.0,0.0003863,14]
[331575647,1720531843412,-2040.66,0.0003863,14]
[331575649,1720531843421,-500.0,0.0003863,14]
[331575651,1720531843430,-500.0,0.0003863,14]
[331575653,1720531843440,-500.0,0.0003863,14]
[331575661,1720531843510,-500.0,0.0003863,14]
[331575663,1720531843521,-536.37670748,0.0003863,14]
[331575665,1720531843530,-500.0,0.0003863,10]
[331575667,1720531843539,-500.0,0.0003863,14]
[331575669,1720531843549,-500.0,0.0003863,14]
[331575670,1720531843558,-1736.19,0.0003863,14]
[331575673,1720531843569,-846.62,0.0003863,14]
[331575674,1720531843579,-500.0,0.0003863,14]
[331575676,1720531843588,-3501.6,0.0003863,14]
[331575678,1720531843597,-682.7,0.0003863,14]
[331575680,1720531843607,-500.0,0.0003863,14]
[331575682,1720531843616,-758.88,0.0003863,14]
[331575684,1720531843625,-151.0,0.0003863,14]
[331575686,1720531843635,-570.95,0.0003863,14]
[331575688,1720531843644,-500.0,0.0003863,14]
[331575690,1720531843653,-500.0,0.0003863,14]
[331575692,1720531843663,-500.0,0.0003863,14]
[331575695,1720531843672,-792.62,0.0003863,14]
[331575698,1720531843681,-500.0,0.0003863,14]
[331575700,1720531843691,-500.0,0.0003863,14]
[331575701,1720531843700,-500.0,0.0003863,2]
[331575703,1720531843709,-1062.33,0.0003863,14]
[331575705,1720531843718,-792.69,0.0003863,14]
[331575707,1720531843728,-6168.46,0.0003863,7]
[331575709,1720531843738,-970.944185,0.0003863,14]
[331575711,1720531843747,-970.944185,0.0003863,14]
[331575713,1720531843757,-500.0,0.0003863,14]
[331575715,1720531843766,-500.0,0.0003863,14]
[331575716,1720531843776,-924.99,0.0003863,14]
[331575717,1720531843786,-699.3,0.0003863,14]
[331575718,1720531843795,-4649.22,0.0003863,14]
[331575719,1720531843805,-500.0,0.0003863,14]
[331575720,1720531843814,-698.41,0.0003863,14]
[331575722,1720531843826,-595.81,0.0003863,14]
[331575723,1720531843835,-500.0,0.0003863,14]
[331575725,1720531843845,-1114.64,0.0003863,14]
[331575727,1720531843854,-631.77588735,0.0003863,14]
[331575728,1720531843864,-1195.03,0.0003863,14]
[331575730,1720531843873,-500.0,0.0003863,14]
[331575731,1720531843883,-500.0,0.0003863,14]
[331575732,1720531843893,-589.23,0.0003863,14]
[331575733,1720531843903,-886.16,0.0003863,14]
[331575734,1720531843912,-500.0,0.0003863,14]
[331575735,1720531843922,-500.0,0.0003863,14]
[331575736,1720531843932,-477.92027508,0.0003863,14]
[331575737,1720531843941,-1646.5,0.0003863,14]
[331575738,1720531843951,-500.0,0.0003863,14]
[331575739,1720531843961,-500.0,0.0003863,14]
[331575740,1720531843971,-287.5472963,0.0003863,14]
[331575741,1720531843980,-500.0,0.0003863,14]
[331575742,1720531843990,-11033.08,0.0003863,14]
[331575743,1720531843999,-500.0,0.0003863,14]
[331575744,1720531844008,-687.21,0.0003863,14]
[331575745,1720531844018,-500.0,0.0003863,14]
[331575746,1720531844027,-500.0,0.0003863,2]
[331575747,1720531844042,-963.45,0.0003863,14]
[331575748,1720531844051,-2542.44,0.0003863,14]
[331575749,1720531844060,-968.47,0.0003863,14]
[331575750,1720531844070,-444.50093067,0.0003863,14]
[331575751,1720531844079,-500.0,0.0003863,14]
[331575752,1720531844089,-500.0,0.0003863,2]
[331575753,1720531844098,-500.0,0.0003863,14]
[331575754,1720531844107,-1416.6,0.0003863,14]
[331575755,1720531844117,-307.922978,0.0003863,2]
[331575756,1720531844127,-315.3,0.000387,2]
[331575758,1720531844137,-9222.09683831,0.000387,7]
[331575760,1720531844146,-383.77672252,0.000387,4]
[331575762,1720531844155,-1026.21392941,0.000387,4]
[331575764,1720531844164,-303.26839892,0.000387,4]
[331575766,1720531844173,-575.38036629,0.000387,4]
[331575767,1720531844183,-284.56366131,0.000387,3]
[331575768,1720531844196,-266.0,0.000387,13]
[331575769,1720531844205,-150.0,0.000387,2]
[331575770,1720531844214,-153.0,0.00038712,2]
[331575771,1720531844224,-153.0,0.00038712,2]
[331575772,1720531844233,-307.7104676,0.00038712,2]
[331575773,1720531844242,-306.0,0.00038712,2]
[331575774,1720531844251,-153.0,0.00038712,2]
[331575775,1720531844260,-306.0,0.00038712,2]
[331575776,1720531844269,-153.0,0.00038712,2]
[331575777,1720531844278,-164.371,0.0003874,2]
[331575778,1720531844287,-250.0,0.0003874,2]
[331575779,1720531844296,-153.0,0.0003874,2]
[331575780,1720531844305,-153.0,0.0003874,2]
[331575781,1720531844314,-153.0,0.0003874,2]
[331575782,1720531844325,-151.0,0.00038744,2]
[331575783,1720531844334,-151.0,0.00038744,2]
[331575784,1720531844344,-151.0,0.00038744,14]
[331575785,1720531844353,-151.0,0.00038748,14]
[331575786,1720531844363,-151.0,0.00038748,14]
[331575787,1720531844372,-151.0,0.00038748,14]
[331575788,1720531844381,-151.0,0.00038748,14]
[331575789,1720531844390,-151.0,0.00038748,14]
[331575790,1720531844399,-114258.49608623,0.00038748,2]
[331575791,1720531844408,-1011.35573919,0.00038748,2]
[331575792,1720531844417,-500.0,0.00038748,2]
[331575793,1720531844426,-3021.33099301,0.00038748,32]
[331575794,1720531844436,-201.46559218,0.00038748,120]
[331575795,1720531844444,-200.0,0.00038748,2]
[331575796,1720531844454,-431.2097649,0.00038756,2]
[331575797,1720531844463,-153.0,0.00038756,2]
[331575798,1720531844472,-306.0,0.00038756,2]
[331575799,1720531844482,-306.0,0.00038756,2]
[331575800,1720531844491,-306.0,0.00038756,2]
[331575801,1720531844500,-306.0,0.00038756,2]
[331575802,1720531844510,-306.0,0.00038756,2]
[331575803,1720531844519,-306.0,0.00038756,2]
[331575804,1720531844528,-153.0,0.00038756,2]
[331575805,1720531844537,-153.0,0.00038756,2]
[331575806,1720531844546,-153.0,0.00038756,2]
[331575807,1720531844555,-151.0,0.00038756,14]
[331575808,1720531844565,-970.944185,0.00038756,14]
[331575809,1720531844575,-970.944185,0.00038756,14]
[331575810,1720531844585,-1000.0,0.000388,120]
[331575811,1720531844594,-500.0,0.00038904,14]
[331575812,1720531844603,-500.0,0.00038904,14]
[331575813,1720531844613,-500.0,0.00038904,14]
[331575814,1720531844622,-500.0,0.00038904,14]
[331575815,1720531844631,-572.27,0.00038904,14]
[331575816,1720531844640,-519.73146183,0.00038904,14]
[331575817,1720531844649,-500.0,0.00038904,14]
[331575818,1720531844659,-541.56,0.00038904,14]
[331575819,1720531844668,-593.04,0.00038904,14]
[331575820,1720531844678,-500.0,0.00038904,14]
[331575821,1720531844687,-500.0,0.00038904,14]
[331575822,1720531844696,-1099.89,0.00038904,14]
[331575823,1720531844705,-807.2,0.00038904,14]
[331575824,1720531844715,-500.0,0.00038904,14]
[331575825,1720531844725,-500.0,0.00038904,14]
[331575826,1720531844735,-520.84,0.00038904,14]
[331575827,1720531844744,-500.0,0.00038904,14]
[331575828,1720531844753,-6013.32,0.00038904,14]
[331575829,1720531844762,-818.3,0.00038904,14]
[331575830,1720531844771,-500.0,0.00038904,14]
[331575831,1720531844780,-500.0,0.00038904,2]
[331575832,1720531844789,-500.0,0.00038904,14]
[331575833,1720531844798,-832.29,0.00038904,14]
[331575834,1720531844807,-500.0,0.00038904,14]
[331575835,1720531844816,-562.37,0.00038904,14]
[331575836,1720531844827,-500.0,0.00038904,14]
[331575837,1720531844836,-500.0,0.00038904,14]
[331575838,1720531844844,-810.44,0.00038904,14]
[331575839,1720531844854,-500.0,0.00038904,14]
[331575840,1720531844863,-517.92668384,0.00038904,14]
[331575841,1720531844872,-500.0,0.00038904,14]
[331575842,1720531844881,-500.0,0.00038904,14]
[331575843,1720531844891,-500.0,0.00038904,14]
[331575844,1720531844900,-500.0,0.00038904,14]
[331575845,1720531844968,-500.0,0.00038904,14]
[331575846,1720531844978,-500.0,0.00038904,14]
[331575847,1720531844988,-500.0,0.00038904,14]
[331575848,1720531844998,-479.02600227,0.00038904,14]
[331575849,1720531845007,-533.79688625,0.00038904,14]
[331575850,1720531845016,-500.0,0.00038904,14]
[331575851,1720531845026,-2040.66,0.00038904,14]
[331575852,1720531845039,-500.0,0.00038904,14]
[331575853,1720531845048,-500.0,0.00038904,14]
[331575854,1720531845058,-500.0,0.00038904,14]
[331575855,1720531845068,-500.0,0.00038904,14]
[331575856,1720531845081,-500.0,0.00038904,10]
[331575857,1720531845091,-500.0,0.00038904,14]
[331575858,1720531845100,-376.56778037,0.00038904,14]
[331575859,1720531845110,-1736.19,0.00038904,14]
[331575860,1720531845121,-846.62,0.00038904,14]
[331575861,1720531845130,-500.0,0.00038904,14]
[331575862,1720531845140,-3501.6,0.00038904,14]
[331575863,1720531845149,-682.7,0.00038904,14]
[331575864,1720531845158,-500.0,0.00038904,14]
[331575865,1720531845167,-758.88,0.00038904,14]